[Event "New York Spring IM-C 2022"]
[Site "New York"]
[Date "2022.04.18"]
[Round "7.5"]
[White "Ngo, Bach"]
[Black "Singh, Hersh"]
[Result "1-0"]
[ECO "D38"]
[WhiteElo "2306"]
[BlackElo "2084"]
[Annotator "TA"]
[PlyCount "91"]
[EventDate "2022.04.14"]
[EventType "tourn"]
[EventCountry "USA"]
[SourceTitle "playchess.com"]
[Source "ChessBase"]
[SourceQuality "1"]
[TimeControl "5400+30"]

{[%evp 14,91,25,10,13,15,14,8,8,10,9,8,18,9,28,16,17,-12,-5,-22,-6,-16,0,0,0,0,0,-13,-15,-27,-19,-36,0,-8,-10,-21,-22,-22,-38,0,0,0,0,0,0,0,0,0,39,37,108,64,235,231,340,330,325,333,409,399,399,384,489,469,385,380,530,440,977,977,962,766,3045,1226,29987,29988,29988,29987,29985,29984]} 1. d4 {[%emt 0:00:06]} Nf6 {[%emt 0:00:04]} 2. Nf3 {[%emt 0:00:05]} d5 {[%emt 0:00:03]} 3. c4 {[%emt 0:00:06]} e6 {[%emt 0:00:02]} 4. Nc3 {[%emt 0:00:07]} Bb4 {[%emt 0:00:03]} 5. Bg5 {[%emt 0:00:30]} h6 {[%emt 0:00:06]} 6. Bxf6 {[%emt 0:00:05]} Qxf6 {[%emt 0:00:03]} 7. Qa4+ {[%emt 0:00:08]} Nc6 {[%emt 0:00:02]} 8. e3 {[%emt 0:00:11]} O-O {[%emt 0:00:05] D38: Queen's Gambit Declined: Ragozin Defence (4 Nf3 Bb4).} 9. Be2 {[%emt 0:00:11]} dxc4 {[%emt 0:00:08]} 10. O-O {[%emt 0:00:10]} Bd7 {[%emt 0:00:46] The position is equal.} 11. Bxc4 {[%emt 0:00:11]} (11. Qc2 {looks sharper.} Na5 12. Ne5 Qe7 13. Rfd1) 11... Bxc3 {[%emt 0:00:06]} 12. bxc3 {[%emt 0:00:07]} Qe7 {[%emt 0:01:24][%cal Oc6d4]} 13. Be2 {[%emt 0:02:15]} b6 {[%emt 0:02:04]} 14. Qc2 {[%emt 0:04:49]} Na5 {[%emt 0:01:25] [#]} 15. e4 $146 {[%emt 0:08:40]} ({Predecessor:} 15. Ne5 Rfd8 16. Qe4 Be8 17. Bd3 f5 18. Qf4 Nc6 19. e4 Qd6 20. Rad1 g5 21. Qf3 Nxe5 22. dxe5 Qxe5 23. exf5 exf5 24. Bxf5 {1-0 (39) Vidit,S (2726)-Gajewski,G (2616) Chess.com INT 2020}) 15... c5 {[%emt 0:01:52]} 16. d5 {[%emt 0:03:30]} exd5 {[%emt 0:00:43]} 17. exd5 {[%emt 0:00:08]} Bg4 {[%emt 0:01:57]} 18. Rfe1 {[%emt 0:01:02]} Bxf3 {[%emt 0:00:39]} 19. Bxf3 {[%emt 0:00:14]} Qf6 {[%emt 0:00:03]} 20. Re2 {[%emt 0:04:20]} Nc4 {[%emt 0:01:51]} 21. Rae1 {[%emt 0:00:33][%cal Od5d6]} Nd6 {[%emt 0:00:02]} 22. Bg4 {[%emt 0:08:30]} Rad8 {[%emt 0:08:25] Inhibits Bd7.} 23. h3 {[%emt 0:03:38]} Rfe8 {[%emt 0:01:58]} 24. Qa4 {[%emt 0:03:45][%cal Re2e8]} Rxe2 {[%emt 0:09:53]} 25. Rxe2 {[%emt 0:00:21]} Qxc3 {[%emt 0:01:24]} 26. Qxa7 {[%emt 0:00:48]} Re8 {[%emt 0:00:36]} 27. Rxe8+ {[%emt 0:14:20]} Nxe8 {[%emt 0:00:01]} 28. Qb8 {[%emt 0:01:06]} Qe1+ {[%emt 0:01:13]} 29. Kh2 {[%emt 0:00:07] Hoping for f4.} Kh7 {[%emt 0:17:02]} 30. Bf3 {[%emt 0:08:36]} c4 {[%emt 0:03:07]} 31. Qxb6 {[%emt 0:01:03]} c3 {[%emt 0:15:48] [#]} ({Black should play} 31... Qe5+ $14 32. g3 c3) 32. Qd4 $1 $16 {[%emt 0:04:47]} Nf6 $2 {[%emt 0:04:08] Loses the game.} (32... Nd6 $14) 33. d6 $18 {[%emt 0:00:49] Threatens to win with d7.} Qe6 {[%emt 0:02:55]} (33... Nd7 $142 34. a4 Kg8) 34. Qxc3 {[%emt 0:00:35]} Qxd6+ {[%emt 0:02:10]} 35. g3 {[%emt 0:00:15]} Ne8 {[%emt 0:01:52]} 36. Kg2 {[%emt 0:01:04]} Nc7 {[%emt 0:00:05]} 37. a4 {[%emt 0:00:26]} g6 {[%emt 0:02:29]} 38. Qc4 {[%emt 0:02:13]} Kg7 {[%emt 0:00:38]} 39. a5 {[%emt 0:00:10] Inhibits Qb6.} Qe5 {[%emt 0:00:38]} 40. a6 {[%emt 0:00:19]} Nb5 {[%emt 0:00:02]} (40... Qa5 $142 41. Qd4+ Kh7) 41. Bd5 {[%emt 0:01:15]} Nc7 {[%emt 0:00:35] [#]} 42. a7 $1 {[%emt 0:01:01]} Nxd5 {[%emt 0:00:38]} (42... Qxd5+ 43. Qxd5) 43. a8=Q {[%emt 0:00:13] White wants to mate with Qcc8.} Ne3+ {[%emt 0:00:03]} 44. fxe3 {[%emt 0:00:16] White mates.} Qb2+ {[%emt 0:00:02]} 45. Kg1 {[%emt 0:00:24]} Qb1+ {[%emt 0:00:03]} 46. Qf1 {[%emt 0:00:11] Weighted Error Value: White=0.05 (flawless) /Black=0.49} 1-0

[Event "New York Spring IM-C 2022"]
[Site "New York"]
[Date "2022.04.18"]
[Round "8.1"]
[White "Lee, Justin"]
[Black "Singh, Hersh"]
[Result "1/2-1/2"]
[ECO "E27"]
[WhiteElo "2104"]
[BlackElo "2084"]
[Annotator "TA"]
[PlyCount "90"]
[EventDate "2022.04.14"]
[EventType "tourn"]
[EventCountry "USA"]
[SourceTitle "playchess.com"]
[Source "ChessBase"]
[SourceQuality "1"]
[TimeControl "5400+30"]

{[%evp 10,90,-10,-16,17,15,16,-6,0,-26,-30,-49,-50,-166,-151,-139,-153,-168,-167,-172,-172,-161,-118,-113,-95,-95,-97,-114,-13,-20,-21,-38,-14,-67,21,43,22,4,16,8,12,0,43,37,29,24,14,0,0,0,0,0,0,0,0,0,0,0,0,-11,-12,-15,-11,-11,-11,-28,-27,-26,0,0,0,-17,-17,-36,0,0,0,0,0,0,0,0,0]} 1. d4 {[%emt 0:00:02]} Nf6 {[%emt 0:00:04]} 2. c4 {[%emt 0:00:03]} e6 {[%emt 0:00:03]} 3. Nc3 {[%emt 0:00:04]} Bb4 {[%emt 0:00:04]} 4. f3 {[%emt 0:00:06]} O-O {[%emt 0:00:10]} 5. a3 {[%emt 0:00:12]} Bxc3+ {[%emt 0:00:06]} 6. bxc3 {[%emt 0:00:03]} Nh5 {[%emt 0:00:14] E27: Nimzo-Indian: Sämisch: 5...0-0 6 f3.} 7. Nh3 {[%emt 0:00:22]} f5 {[%emt 0:00:09][%cal Bf7f5,Bf5f4][%mdl 32]} 8. Bg5 {[%emt 0:01:01] 8.e4 is the modern continuation.} Qe8 {[%emt 0:00:07] 8...Nf6 is not played anymore.} 9. e3 {[%emt 0:05:25]} d6 {[%emt 0:01:06]} 10. Bd3 {[%emt 0:02:18]} e5 {[%emt 0:01:51] [#]} 11. Kd2 $146 {[%emt 0:42:58]} (11. O-O $15) ({Predecessor:} 11. O-O Nc6 12. Bh4 Bd7 13. Kh1 Kh8 14. f4 b6 15. d5 Na5 16. fxe5 dxe5 17. Ng5 {1-0 (26) Mamedyarov,S (2742)-Eljanov,P (2716) Moscow 2008}) 11... h6 $19 {[%emt 0:20:49]} 12. Bh4 {[%emt 0:00:20]} f4 {[%emt 0:01:32] White must now prevent ...fxe3+.} 13. e4 {[%emt 0:01:30]} Nc6 {[%emt 0:06:42]} 14. Bf2 {[%emt 0:00:52]} Na5 {[%emt 0:03:16]} 15. Ke2 {[%emt 0:09:28]} Be6 {[%emt 0:02:51]} 16. d5 {[%emt 0:14:31]} Bd7 {[%emt 0:08:19]} 17. c5 {[%emt 0:03:50]} Ba4 {[%emt 0:00:13]} 18. Qb1 {[%emt 0:00:23]} Nb3 {[%emt 0:16:22]} (18... b5 $17 {Black wants to play ...Nf6.} 19. c6 Qg6) 19. Ra2 $11 {[%emt 0:00:08]} dxc5 {[%emt 0:06:31] Strongly threatening ...b5.} 20. Rb2 $1 {[%emt 0:00:33]} b5 {[%emt 0:00:04] [#] Threatens to win with ...c4.} 21. Rxb3 {[%emt 0:01:20]} (21. c4 $1 $11 bxc4 22. Bxc4 Nd4+ 23. Bxd4 cxd4 24. Rc1 (24. d6+ Kh8 $15)) 21... Bxb3 {[%emt 0:00:59]} (21... c4 $1 $15 22. Bxc4 bxc4) 22. Bxc5 {[%emt 0:00:10]} ({Of course not} 22. Qxb3 c4 23. Qd1 (23. Bxc4 $2 bxc4 24. Qxc4 Qg6 $19) 23... cxd3+ 24. Qxd3 Qg6 $19) 22... Bc4 {[%emt 0:00:25] And now ...Bxd3+ would win.} 23. Bxf8 {[%emt 0:01:58] Chess con chili. Active counter play!} Qxf8 {[%emt 0:00:01]} 24. Qb4 {[%emt 0:00:30]} Bxd3+ {[%emt 0:10:13]} 25. Kxd3 {[%emt 0:00:05]} Qd6 {[%emt 0:00:50]} 26. Qxd6 {[%emt 0:02:27]} (26. Qxb5 {seems wilder.} Qxa3 27. Qb7 Re8 28. Rb1) 26... cxd6 $14 {[%emt 0:00:01][%mdl 4096] Endgame KRN-KRN} 27. Rb1 {[%emt 0:00:05]} a6 {[%emt 0:00:11]} 28. c4 {[%emt 0:00:59]} Nf6 $1 {[%emt 0:00:27]} 29. cxb5 {[%emt 0:04:14]} axb5 {[%emt 0:00:01]} 30. Rxb5 {[%emt 0:00:09]} Rxa3+ {[%emt 0:00:01]} 31. Ke2 {[%emt 0:00:05]} Ra2+ {[%emt 0:00:27]} 32. Kf1 {[%emt 0:00:05]} Kf7 {[%emt 0:06:48]} 33. Rb7+ {[%emt 0:01:10]} Kf8 {[%emt 0:00:01]} 34. Ng1 {[%emt 0:00:51]} g5 {[%emt 0:00:46]} 35. Ne2 {[%emt 0:01:52]} Ra3 {[%emt 0:02:56]} 36. h3 {[%emt 0:03:39]} h5 {[%emt 0:00:20]} 37. Rb8+ {[%emt 0:02:15]} (37. Nc1 {with more complications.} g4 38. Kf2 Rc3 39. Ne2) 37... Kf7 {[%emt 0:00:02]} 38. Rb7+ {[%emt 0:00:12]} Kg6 {[%emt 0:02:30]} 39. Rb6 {[%emt 0:01:05]} g4 {[%emt 0:00:55]} 40. hxg4 {[%emt 0:00:03]} ({But not} 40. Rxd6 gxf3 41. Ng1 fxg2+ 42. Kxg2 Rg3+ 43. Kf1 Re3 $17) 40... hxg4 {[%emt 0:00:07]} 41. Rxd6 {[%emt 0:01:13][%cal Oe2f4]} Ra1+ {[%emt 0:00:31]} 42. Kf2 {[%emt 0:00:06] The position is equal.} g3+ {[%emt 0:00:03]} 43. Nxg3 {[%emt 0:00:06]} fxg3+ {[%emt 0:00:02]} 44. Kxg3 {[%emt 0:00:07]} Kg5 {[%emt 0:00:09]} 45. Re6 {[%emt 0:04:05]} Nh5+ {[%emt 0:13:41] And White is the lucky defender.  Weighted Error Value: White=0.09 (flawless) /Black=0.15 (very precise)} 1/2-1/2

[Event "New York Spring IM-C 2022"]
[Site "New York"]
[Date "2022.04.18"]
[Round "8.2"]
[White "Berczes, David"]
[Black "Ngo, Bach"]
[Result "1/2-1/2"]
[ECO "D24"]
[WhiteElo "2452"]
[BlackElo "2306"]
[Annotator "TA"]
[PlyCount "43"]
[EventDate "2022.04.14"]
[EventType "tourn"]
[EventCountry "USA"]
[SourceTitle "playchess.com"]
[Source "ChessBase"]
[SourceQuality "1"]
[TimeControl "5400+30"]

{[%evp 10,43,18,7,0,0,8,0,12,0,0,0,0,0,0,0,0,0,0,0,0,29,38,0,0,0,0,0,0,0,0,0,0,0,0,0]} 1. d4 {[%emt 0:16:35]} Nf6 {[%emt 0:00:08]} 2. c4 {[%emt 0:00:34]} e6 {[%emt 0:00:10]} 3. Nf3 {[%emt 0:00:30]} d5 {[%emt 0:00:14]} 4. Nc3 {[%emt 0:01:29]} dxc4 {[%emt 0:00:15]} 5. e3 {[%emt 0:00:22]} a6 {[%emt 0:00:24]} 6. a4 {[%emt 0:00:37]} b6 {[%emt 0:00:29] D24: Queen's Gambit Accepted: 3 Nf3 Nf6 4 Nc3.} 7. Bxc4 {[%emt 0:00:31]} Bb7 {[%emt 0:00:13] Against e4} 8. O-O {[%emt 0:00:51][%cal Oe3e4]} Bb4 {[%emt 0:00:15]} 9. Qb3 {[%emt 0:00:33]} Qe7 {[%emt 0:00:11]} 10. d5 {[%emt 0:00:22][%cal Rd5e6]} Bxc3 {[%emt 0:00:11]} 11. dxe6 {[%emt 0:00:09]} Bb4 {[%emt 0:00:08]} 12. exf7+ {[%emt 0:00:10]} Kf8 {[%emt 0:00:10] [#] And now ...Bxf3 would win.} 13. Nd4 {[%emt 0:00:07] Ne6+ is the strong threat.} b5 {[%emt 0:00:13]} 14. axb5 {[%emt 0:00:28]} axb5 {[%emt 0:00:14]} 15. Rxa8 {[%emt 0:00:11] Dancing on a razor blade.} Bxa8 {[%emt 0:00:08] [#]} 16. Bxb5 $146 {[%emt 0:00:15] [#] Black must now prevent Ne6+.} (16. Be6 $5 {[%cal Rd4f5]} c5 17. Nxb5 $11) ({Predecessor:} 16. Nxb5 Nc6 17. Qa4 Bb7 18. Rd1 g5 19. h4 Qe4 20. b3 gxh4 21. Nxc7 {½-½ (21) Pohlig,B (2183)-Hoffmann,F (2279) ICCF email 2013}) 16... Bd5 {[%emt 0:09:38] Inhibits Ne6+. The position is equal.} 17. Bc4 {[%emt 0:03:38]} Bxc4 {[%emt 0:01:25]} 18. Qxc4 {[%emt 0:00:06] Hoping for Qb3.} Bd6 $1 {[%emt 0:01:05]} 19. Ne6+ {[%emt 0:04:20]} Kxf7 {[%emt 0:00:09]} 20. Nxc7+ {[%emt 0:01:53]} Kg6 {[%emt 0:00:39]} 21. Qd3+ {[%emt 0:04:24]} Kf7 $1 {[%emt 0:00:26]} 22. Qc4+ {[%emt 0:02:24] An even fight not without its subleties.  Weighted Error Value: White=0.04 (flawless) /Black=0.01 (flawless)} 1/2-1/2

[Event "New York Spring IM-C 2022"]
[Site "New York"]
[Date "2022.04.18"]
[Round "8.3"]
[White "Rozman, Levy"]
[Black "Umayan, Vincent"]
[Result "1-0"]
[ECO "D00"]
[WhiteElo "2334"]
[BlackElo "2043"]
[Annotator "TA"]
[PlyCount "63"]
[EventDate "2022.04.14"]
[EventType "tourn"]
[EventCountry "USA"]
[SourceTitle "playchess.com"]
[Source "ChessBase"]
[SourceQuality "1"]
[TimeControl "5400+30"]

{[%evp 9,63,0,39,43,34,19,47,40,53,44,50,47,53,0,0,0,0,0,50,48,78,50,102,102,102,90,116,116,110,106,92,80,72,74,87,35,117,74,69,64,64,62,61,75,114,60,111,115,220,210,277,245,220,222,722,724]} 1. d4 {[%emt 0:00:52]} d5 {[%emt 0:01:01]} 2. Bf4 {[%emt 0:02:51]} Nf6 {[%emt 0:01:15]} 3. Nc3 {[%emt 0:00:22]} e6 {[%emt 0:03:59]} 4. e3 {[%emt 0:02:19]} a6 {[%emt 0:04:20]} 5. g4 {[%emt 0:05:03]} Bd6 {[%emt 0:08:56]} 6. Qf3 {[%emt 0:02:02] D00: 1 d4 d5: Unusual lines.} Bxf4 {[%emt 0:04:51]} 7. exf4 {[%emt 0:00:07]} c5 {[%emt 0:01:43]} 8. dxc5 {[%emt 0:01:08] White is slightly better.} Qa5 {[%emt 0:00:53] [#] aiming for ...d4.} 9. O-O-O {[%emt 0:00:27]} Nc6 {[%emt 0:11:08] [#]} 10. Kb1 $146 {[%emt 0:06:09]} ({Predecessor:} 10. g5 Ne4 11. Nge2 Nxc5 12. f5 Bd7 13. h4 O-O-O 14. h5 b5 15. Bg2 b4 16. Nxd5 exd5 17. Rxd5 {0-1 (29) Canty,J (2201)-Xu,G (2231) New York 2022}) 10... O-O {[%emt 0:05:38]} 11. Bd3 {[%emt 0:10:06]} ({Better is} 11. Nge2 $14) 11... e5 $11 {[%emt 0:06:54]} 12. fxe5 {[%emt 0:07:56]} Nxe5 {[%emt 0:03:09]} 13. Qf4 {[%emt 0:05:49]} Nxd3 {[%emt 0:07:42]} (13... Bxg4 $11 14. f3 (14. Qxe5 Bxd1 15. Nxd1 Rfe8 $15) 14... Nxd3 15. Rxd3 Bh5) 14. Rxd3 $14 {[%emt 0:00:43] b4 is the strong threat.} Qxc5 {[%emt 0:04:29]} 15. f3 {[%emt 0:04:11]} Be6 {[%emt 0:04:19]} (15... Re8 $14) 16. Nge2 $16 {[%emt 0:05:51]} Rac8 {[%emt 0:02:58]} 17. h4 {[%emt 0:05:24]} b5 {[%emt 0:05:09] [#] And now ...b4 would win.} 18. Nd4 {[%emt 0:00:21]} b4 {[%emt 0:02:01]} 19. Nce2 {[%emt 0:00:08]} Rfe8 {[%emt 0:03:54][%cal Oe6g4]} 20. Rg1 {[%emt 0:06:51]} Kh8 {[%emt 0:05:06][%cal Oe6g4]} 21. Rg2 {[%emt 0:02:49]} a5 {[%emt 0:03:17]} 22. h5 {[%emt 0:00:06]} ({White should play} 22. Rd1 $16) 22... Qc7 {[%emt 0:02:37]} ({Black should try} 22... h6 $1 $14) 23. h6 {[%emt 0:08:09]} Qxf4 {[%emt 0:00:58]} 24. hxg7+ {[%emt 0:00:02]} Kg8 $1 {[%emt 0:01:00]} 25. Nxf4 {[%emt 0:00:08]} Bxg4 {[%emt 0:00:35] ( -> ...Re1+)} 26. Rd1 {[%emt 0:00:33] Against Re1} Bd7 {[%emt 0:01:43]} 27. Rg5 {[%emt 0:00:11] Against Re5} (27. b3 $16) 27... Rc5 {[%emt 0:02:32]} (27... h6 $14 28. Rg2 (28. Nxd5 hxg5 29. Nxf6+ Kxg7 $16) 28... Re5) 28. b3 {[%emt 0:00:50] Hoping for Rh1. &Bianco is more active.} a4 {[%emt 0:00:21]} (28... h6 $16 29. Rg2 Rcc8) 29. Nd3 $40 {[%emt 0:00:44][%mdl 128] Black is in trouble. Pair of Knights!} Ra5 {[%emt 0:00:19]} 30. Nxb4 {[%emt 0:00:16]} h6 {[%emt 0:01:38]} 31. Rg2 {[%emt 0:00:18]} Re5 $2 {[%emt 0:00:17]} (31... axb3 32. axb3 (32. cxb3 Nh5 $18) 32... Nh5) 32. Nbc6 {[%emt 0:00:19] Weighted Error Value: White=0.13 (very precise) /Black=0.26 (precise)} 1-0

[Event "New York Spring IM-C 2022"]
[Site "New York"]
[Date "2022.04.18"]
[Round "8.5"]
[White "Dolgitser, Konstantin"]
[Black "Antova, Gabriela"]
[Result "0-1"]
[ECO "D45"]
[WhiteElo "2199"]
[BlackElo "2304"]
[Annotator "TA"]
[PlyCount "84"]
[EventDate "2022.04.14"]
[EventType "tourn"]
[EventCountry "USA"]
[SourceTitle "playchess.com"]
[Source "ChessBase"]
[SourceQuality "1"]
[TimeControl "5400+30"]

{[%evp 14,84,0,0,10,0,9,0,0,0,8,-29,-36,-33,-37,-57,-60,-104,-61,-88,-34,-59,0,0,0,-54,-54,-53,-49,-53,-50,-47,-52,-40,-34,-52,-48,-52,-55,-55,-56,-67,-70,-77,-40,-43,-40,-68,-7,-91,-91,-93,-81,-449,-454,-459,-450,-618,-610,-664,-602,-651,-627,-752,-703,-710,-688,-672,-672,-639,-589,-589,-589]} 1. d4 {[%emt 0:00:04]} d5 {[%emt 0:00:13]} 2. c4 {[%emt 0:00:11]} c6 {[%emt 0:00:18]} 3. Nc3 {[%emt 0:00:12]} Nf6 {[%emt 0:00:08]} 4. e3 {[%emt 0:00:38]} e6 {[%emt 0:00:26]} 5. Nf3 {[%emt 0:00:35]} Nbd7 {[%emt 0:00:26]} 6. Be2 {[%emt 0:00:25]} Bd6 {[%emt 0:00:28]} 7. b3 {[%emt 0:00:56]} O-O {[%emt 0:00:23]} 8. O-O {[%emt 0:00:13]} b6 {[%emt 0:05:55] D45: Semi-Slav: 5 e3.} 9. Bb2 {[%emt 0:00:32]} Bb7 {[%emt 0:00:11]} 10. Re1 {[%emt 0:01:31]} Ne4 {[%emt 0:08:28] The position is equal.} 11. Nxe4 {[%emt 0:11:07]} dxe4 {[%emt 0:00:03]} 12. Nd2 {[%emt 0:00:07] [#]} c5 $146 {[%emt 0:04:08]} ({Resist} 12... Qh4 13. g3 Qe7 14. Nxe4 $16) ({Predecessor:} 12... f5 13. a4 a5 14. Ba3 c5 15. Nb1 Rf6 16. g3 Qe7 17. Nc3 Rd8 18. Nb5 Bb8 {1-0 (39) Reuker,J (2401)-Goldbeck,L (2273) Berlin 2020}) 13. Qc2 {[%emt 0:06:50]} f5 {[%emt 0:01:29]} 14. g3 {[%emt 0:00:55]} Qg5 {[%emt 0:02:38]} 15. Bf1 {[%emt 0:00:38]} Nf6 {[%emt 0:04:56] &Nero is much more active. The white rooks are badly placed.} 16. Bg2 {[%emt 0:04:59]} Rad8 {[%emt 0:08:51]} (16... cxd4 $17 17. exd4 Rac8) 17. Rad1 {[%emt 0:02:25]} Rd7 {[%emt 0:04:14]} (17... cxd4 $15 18. exd4 Rc8) 18. dxc5 $11 {[%emt 0:03:22]} bxc5 {[%emt 0:05:19]} 19. Bxf6 {[%emt 0:05:22]} ({White should play} 19. b4 $11) 19... Qxf6 $15 {[%emt 0:01:12]} ({Don't play} 19... gxf6 20. f3 $11) 20. Nb1 {[%emt 0:01:02][%cal Ob3b4,Bd2b1,Bb1c3,Bc3b5][%mdl 32]} Rfd8 {[%emt 0:10:05]} 21. Rd2 {[%emt 0:00:16]} Bc6 {[%emt 0:12:44]} 22. Red1 {[%emt 0:00:15]} g5 {[%emt 0:03:36]} 23. Nc3 {[%emt 0:03:31]} Qg7 {[%emt 0:06:56]} 24. Nb5 {[%emt 0:03:10][%cal Rb5d6]} Be5 {[%emt 0:03:05]} 25. Rxd7 {[%emt 0:09:26]} Rxd7 {[%emt 0:00:08]} 26. Rd2 {[%emt 0:00:23]} h5 {[%emt 0:07:25][%cal Bh7h5,Bh5h4][%mdl 32]} 27. Qd1 {[%emt 0:00:43]} a6 {[%emt 0:01:04]} 28. Na3 {[%emt 0:01:51]} h4 {[%emt 0:01:10]} 29. Rxd7 {[%emt 0:01:26]} Bxd7 {[%emt 0:02:17]} 30. Nc2 {[%emt 0:01:03]} Bc7 {[%emt 0:01:21]} ({Black should try} 30... Qe7 $15) 31. Qa1 {[%emt 0:05:01]} (31. b4 $11 {keeps the balance.}) 31... Qxa1+ $17 {[%emt 0:01:47]} 32. Nxa1 {[%emt 0:00:02][%mdl 4096] Endgame KBB-KBN} Be8 {[%emt 0:00:17][%cal Bd7e8,Be8h5,Bh5d1][%mdl 32]} 33. a3 $2 {[%emt 0:03:56][%mdl 8192] [#] This move loses the game for White.} (33. gxh4 $17 {is tougher.} gxh4 34. f3) 33... hxg3 $19 {[%emt 0:01:34] Black is clearly winning.} 34. hxg3 {[%emt 0:00:09]} Bh5 {[%emt 0:00:30]} 35. b4 {[%emt 0:15:25]} Bd1 {[%emt 0:00:04] Prevents Nb3.} 36. bxc5 {[%emt 0:00:53]} Kf7 {[%emt 0:01:25]} 37. c6 {[%emt 0:01:54]} Ke7 {[%emt 0:00:27]} 38. c5 {[%emt 0:00:05]} Be5 {[%emt 0:00:30]} 39. Bf1 {[%emt 0:00:23]} Bxa1 {[%emt 0:00:40]} 40. c7 {[%emt 0:00:54]} Kd7 {[%emt 0:00:04]} 41. Bxa6 {[%emt 0:00:04]} Kxc7 {[%emt 0:00:12]} 42. Bc4 {[%emt 0:00:04]} e5 {[%emt 0:02:03] Weighted Error Value: White=0.44/Black=0.13 (very precise)} 0-1

[Event "New York Spring IM-C 2022"]
[Site "New York"]
[Date "2022.04.19"]
[Round "9.1"]
[White "Antova, Gabriela"]
[Black "Lee, Justin"]
[Result "1-0"]
[ECO "D11"]
[WhiteElo "2304"]
[BlackElo "2104"]
[Annotator "TA"]
[PlyCount "57"]
[EventDate "2022.04.14"]
[EventType "tourn"]
[EventCountry "USA"]
[SourceTitle "playchess.com"]
[Source "ChessBase"]
[SourceQuality "1"]
[TimeControl "5400+30"]

{[%evp 9,57,0,12,2,53,45,56,45,54,43,57,60,107,41,40,35,42,-12,0,5,0,0,0,0,16,0,0,0,0,0,0,-26,6,-25,0,0,98,88,650,668,1078,1066,2311,2087,29996,29997,29997,29998,29998,29999]} 1. d4 {[%emt 0:00:02]} d5 {[%emt 0:00:04]} 2. c4 {[%emt 0:00:39]} c6 {[%emt 0:00:05]} 3. Nf3 {[%emt 0:00:10]} Nf6 {[%emt 0:00:07]} 4. Nbd2 {[%emt 0:00:17]} Bf5 {[%emt 0:00:31]} 5. Nh4 {[%emt 0:00:24]} Be4 {[%emt 0:00:48]} 6. Qb3 {[%emt 0:00:31] With the idea f3. D11: Slav Defence: 3 Nf3 sidelines and 3...Nf6 4 e3 Bg4.} Qc8 {[%emt 0:07:13]} ({Better is} 6... Qb6 $11) 7. Nxe4 $14 {[%emt 0:10:07]} dxe4 {[%emt 0:00:17] [#]} 8. g3 $146 {[%emt 0:00:17][%cal Of1h3] White is slightly better.} ({Predecessor:} 8. g4 Nxg4 9. Bh3 h5 10. Bg5 e6 11. f3 exf3 12. exf3 Nf6 13. d5 cxd5 14. cxd5 {½-½ (37) Kozionov,K (2433)-Travkina,A (2221) St Petersburg 2017}) 8... e6 {[%emt 0:03:28]} 9. Bh3 {[%emt 0:00:53]} Nbd7 {[%emt 0:03:57]} 10. O-O {[%emt 0:08:25]} Bd6 {[%emt 0:02:20]} (10... Be7 $14) 11. c5 {[%emt 0:06:08]} (11. f3 $16) 11... Be7 {[%emt 0:05:34]} 12. f3 {[%emt 0:03:59]} O-O {[%emt 0:08:36]} 13. Qc2 {[%emt 0:05:44]} (13. fxe4 $14 Nxe4 14. Bg2 (14. Bxe6 Bf6 $14)) 13... exf3 {[%emt 0:01:21]} 14. Nxf3 {[%emt 0:00:28]} b6 {[%emt 0:01:19]} 15. cxb6 {[%emt 0:04:36]} axb6 {[%emt 0:00:42]} 16. e4 {[%emt 0:00:46][%cal Be2e4,Be4e5][%mdl 32]} Qb7 {[%emt 0:06:06]} 17. e5 {[%emt 0:11:29] Ng5 is the strong threat.} Nd5 {[%emt 0:00:36]} 18. Bg5 {[%emt 0:00:46] Strongly threatening Bxe7.} h6 {[%emt 0:12:29]} 19. Bxe7 {[%emt 0:04:18]} Nxe7 {[%emt 0:00:11]} 20. Qe4 {[%emt 0:03:06]} (20. g4 $5 {[%cal Rg4g5]}) 20... Nd5 {[%emt 0:01:56]} 21. Nd2 {[%emt 0:02:17][%cal Bf3d2,Bd2c4,Bc4d6][%mdl 32]} c5 {[%emt 0:11:17]} 22. Nc4 $1 {[%emt 0:04:05]} Qc6 {[%emt 0:07:39] [#]} (22... cxd4 $11 {keeps the balance.} 23. Nd6 Nc5) 23. Nd6 $1 $16 {[%emt 0:03:26][%cal Of1f7] Hoping for Rxf7! &Bianco is more active.} N7f6 $2 {[%emt 0:05:29][%mdl 8192] [#] This costs Black the game.} 24. Rxf6 $1 $18 {[%emt 0:11:06][%mdl 512]} gxf6 {[%emt 0:08:59] [#]} (24... Qd7 25. Rf2) 25. exf6 {[%emt 0:00:27] White threatens Qg4+ and mate.} Kh8 {[%emt 0:02:38] [#]} (25... Ne7 26. Qf4) 26. Qh4 $1 {[%emt 0:00:22]} Kh7 {[%emt 0:03:03] [#]} (26... Nxf6 27. Qxf6+) 27. Nf5 $1 {[%emt 0:00:14][%mdl 512] White mates.} exf5 {[%emt 0:00:21]} 28. Bxf5+ {[%emt 0:00:06]} Kh8 {[%emt 0:00:15]} 29. Qxh6+ {[%emt 0:00:06] Weighted Error Value: White=0.10 (very precise) /Black=0.80} 1-0